bitfinex/quotes_ETHUSD_20250705
["timestamp","ask_amount","ask_price","bid_price","bid_amount"]
[1751682144053,0.37243594,2516.9,2516.8,5.68739561]
[1751682144752,0.37243594,2516.9,2516.8,5.64766262]
[1751682146140,0.37243594,2516.9,2516.8,13.64666262]
[1751682146324,1.94,2517.2,2516.9,3.97299206]
[1751682146525,0.37225775,2517.1,2517.0,3.97298371]
[1751682146734,0.37225775,2517.1,2517.0,4.17138371]
[1751682147269,0.37225775,2517.1,2517.0,5.95317018]
[1751682147475,0.37225775,2517.1,2517.0,6.73227018]
[1751682154996,0.37190246,2517.1,2517.0,6.73227018]
[1751682155538,0.37190246,2517.1,2517.0,14.73027018]
[1751682155860,0.37190246,2517.1,2517.0,13.95117018]
[1751682157357,0.37190246,2517.1,2517.0,9.97818647]
[1751682158656,1.13840246,2517.1,2517.0,0.1984]
[1751682158859,1.13840246,2517.1,2517.0,7.998]
[1751682160397,1.13840246,2517.1,2516.8,0.1994]
[1751682160595,0.37190246,2517.0,2516.9,7.998]
[1751682165830,0.37190246,2517.0,2516.9,11.97114156]
[1751682166491,0.37190246,2517.0,2516.9,11.97214156]
[1751682166913,0.37226386,2517.0,2516.9,11.97214156]
[1751682169493,0.37226386,2517.0,2516.9,3.97414156]
[1751682172934,0.37226386,2517.0,2516.9,0.001]
[1751682174732,0.37226386,2517.0,2516.9,3.97414156]
[1751682176614,0.37226386,2517.0,2516.9,5.58862326]
[1751682181408,0.37226386,2517.0,2516.9,6.40235467]
[1751682182523,0.37226386,2517.0,2516.9,6.95235467]
[1751682182715,0.002,2517.4,2517.3,3.97251022]
[1751682182917,0.3745177,2517.4,2517.3,11.96951022]
[1751682183227,0.3745177,2517.4,2517.3,12.16791022]
[1751682183413,0.3743987,2517.4,2517.3,13.85936576]
[1751682184410,0.3743987,2517.4,2517.3,9.88685554]
[1751682184610,0.3743987,2517.4,2517.3,8.1954]
[1751682184846,0.3743987,2517.4,2517.3,12.16791022]
[1751682186244,0.3743987,2517.4,2517.3,8.1954]
[1751682187748,0.3743987,2517.4,2517.3,12.16791022]
[1751682189452,0.37409511,2517.4,2517.3,12.16791022]
[1751682189617,0.37409511,2517.4,2517.3,13.78197905]
[1751682190522,0.37409511,2517.4,2517.3,9.80946883]
[1751682192350,0.37409511,2517.4,2517.3,8.1954]
[1751682199684,0.37409511,2517.4,2517.1,3.97275298]
[1751682199955,0.37409511,2517.4,2517.2,7.996]
[1751682199956,1.20469511,2517.3,2517.2,7.996]
[1751682201458,1.2047568,2517.3,2517.2,7.996]
[1751682202656,5.1773346,2517.3,2516.9,0.1994]
[1751682202859,0.8326,2517.0,2516.9,0.001]
[1751682203171,1.2047568,2517.0,2516.9,0.001]
[1751682207162,1.20482751,2517.0,2516.9,0.001]
[1751682212970,1.2046895,2517.0,2516.9,0.001]
[1751682215977,1.20459212,2517.0,2516.9,0.001]
[1751682221651,0.37199212,2517.0,2516.9,3.97414156]
[1751682230275,0.37199212,2517.0,2516.9,0.001]
[1751682231581,4.34497583,2517.0,2516.9,0.001]
[1751682233788,3.97298371,2517.0,2516.9,0.001]
[1751682234463,4.3456653,2517.0,2516.9,0.001]
[1751682236968,4.34565629,2517.0,2516.9,0.001]
[1751682237171,5.47217517,2517.0,2516.9,0.001]
[1751682237369,6.47987517,2517.0,2516.9,0.001]
[1751682237573,16.47987517,2517.0,2516.9,0.001]
[1751682237768,46.47987517,2517.0,2516.9,1e-08]
[1751682237972,3.97314156,2516.9,2516.8,0.001]
[1751682238273,25.53242577,2516.9,2516.8,0.001]
[1751682239204,25.83210353,2516.9,2516.8,0.001]
[1751682239905,25.83118044,2516.9,2516.8,0.001]
[1751682241501,33.82818044,2516.9,2516.8,0.001]
[1751682241919,33.82802483,2516.9,2516.8,0.001]
[1751682242321,34.03539688,2516.9,2516.8,0.001]
[1751682244737,34.03510665,2516.9,2516.8,0.001]
[1751682245750,26.14930219,2516.9,2516.8,0.001]
[1751682248939,28.08830219,2516.9,2516.8,0.001]
[1751682253639,28.08808556,2516.9,2516.8,0.001]
[1751682264348,28.09008556,2516.9,2516.8,0.001]
[1751682274147,28.09166623,2516.9,2516.8,0.001]
[1751682277065,27.71899854,2516.9,2516.8,0.001]
[1751682277270,28.09169067,2516.9,2516.8,0.001]
[1751682280271,28.09167699,2516.9,2516.8,0.001]
[1751682282171,38.09167699,2516.9,2516.8,1e-08]
[1751682282357,14.7948573,2516.7,2516.6,0.02]
[1751682282556,33.75141533,2516.7,2516.6,0.02]
[1751682286145,32.93001533,2516.7,2516.6,0.02]
[1751682287379,32.9294263,2516.7,2516.6,0.02]
[1751682288577,24.9324263,2516.7,2516.6,0.02]
[1751682288780,34.8684263,2516.7,2516.6,0.02]
[1751682289874,19.2852996,2516.7,2516.6,0.02]
[1751682290075,24.28054672,2516.7,2516.6,0.02]
[1751682292266,31.86667342,2516.7,2516.6,0.02]
[1751682293370,32.66527342,2516.7,2516.6,0.02]
[1751682295578,33.21527342,2516.7,2516.6,0.02]
[1751682295773,14.17201519,2516.6,2516.5,0.02]
[1751682295969,14.17201519,2516.6,2516.3,0.02]
[1751682295970,33.97393101,2516.4,2516.3,0.02]
[1751682296158,50.71154713,2516.4,2516.3,0.02]
[1751682296358,50.91897766,2516.4,2516.3,0.02]
[1751682297792,20.91897766,2516.4,2516.3,0.02]
[1751682298318,21.46897766,2516.4,2516.3,0.02]
[1751682298470,54.98954187,2516.4,2516.3,0.02]
[1751682299070,64.98954187,2516.4,2516.3,0.02]
[1751682299295,64.98954187,2516.4,2516.3,1e-08]
[1751682301582,72.83954187,2516.4,2516.3,1e-08]
[1751682305577,72.83855224,2516.4,2516.3,1e-08]
[1751682306810,74.77855224,2516.4,2516.3,1e-08]
[1751682307309,78.96755224,2516.4,2516.3,1e-08]
[1751682308511,78.96750192,2516.4,2516.3,1e-08]
[1751682310793,74.77850192,2516.4,2516.3,1e-08]
[1751682312819,64.29150192,2516.4,2516.3,1e-08]
[1751682313023,74.22850192,2516.4,2516.3,1e-08]
[1751682315320,74.23050192,2516.4,2516.3,1e-08]
[1751682317192,48.41967135,2516.4,2516.3,1e-08]
[1751682317397,74.23067135,2516.4,2516.3,1e-08]
[1751682319225,66.23267135,2516.4,2516.3,1e-08]
[1751682319429,74.23067135,2516.4,2516.3,1e-08]
[1751682319632,64.29367135,2516.4,2516.3,1e-08]
[1751682319802,74.23067135,2516.4,2516.3,1e-08]
[1751682321826,73.44827135,2516.4,2516.3,1e-08]
[1751682323033,73.07705245,2516.4,2516.3,1e-08]
[1751682323341,3.97440483,2516.1,2516.0,0.001]
[1751682323537,22.34398363,2516.1,2516.0,0.001]
[1751682323936,22.55140281,2516.1,2516.0,0.001]
[1751682327934,30.13752951,2516.1,2516.0,0.001]
[1751682331946,30.13825573,2516.1,2516.0,0.001]
[1751682332731,32.07725573,2516.1,2516.0,0.001]
[1751682341738,22.14025573,2516.1,2516.0,0.001]
[1751682342129,32.07725573,2516.1,2516.0,0.001]
[1751682347463,35.92614821,2516.1,2516.0,0.001]
[1751682347773,35.92622291,2516.1,2516.0,0.001]
[1751682352177,36.72732291,2516.1,2516.0,0.001]
[1751682353341,66.93156016,2516.1,2516.0,0.001]
[1751682353550,14.77582077,2515.9,2515.8,0.019]
[1751682353877,23.14520049,2515.9,2515.8,0.019]
[1751682355343,23.14482591,2515.9,2515.8,0.019]
[1751682355982,14.34672591,2515.9,2515.8,0.019]
[1751682356176,14.34672591,2515.9,2515.8,0.7864]
[1751682356177,24.28172591,2515.9,2515.8,0.7864]
[1751682358876,24.28172591,2515.9,2515.8,0.019]
[1751682362153,20.30700514,2515.9,2515.8,0.019]
[1751682362349,24.28172591,2515.9,2515.8,0.019]
[1751682362986,24.2816094,2515.9,2515.8,0.019]
[1751682363286,24.2816097,2515.9,2515.8,0.019]
[1751682363784,14.3466097,2515.9,2515.8,0.019]
[1751682363982,24.2816097,2515.9,2515.8,0.019]
[1751682366594,16.2846097,2515.9,2515.8,0.019]
[1751682366894,24.2816097,2515.9,2515.8,0.019]
[1751682374069,24.28189875,2515.9,2515.8,0.019]
[1751682379682,24.28389875,2515.9,2515.8,0.019]
[1751682394827,20.30817798,2515.9,2515.8,0.019]
[1751682395225,24.28289875,2515.9,2515.8,0.019]
[1751682395427,24.28348857,2515.9,2515.8,0.019]
[1751682395827,16.28748857,2515.9,2515.8,0.019]
[1751682396029,2.3127678,2515.9,2515.8,0.019]
[1751682396232,2.3127678,2515.9,2515.8,0.8413]
[1751682398628,2.3127678,2515.9,2515.8,5.30288118]
[1751682399998,2.3127678,2515.9,2515.8,1.32800242]
[1751682401209,1.94,2515.9,2515.8,1.32800242]
[1751682401410,2.31248012,2515.9,2515.8,1.32800242]
[1751682404235,2.31233034,2515.9,2515.8,1.32800242]
[1751682404909,0.37433034,2515.9,2515.8,5.30288118]
[1751682406646,0.37433034,2515.9,2515.8,1.32800242]
[1751682406806,0.37433034,2515.9,2515.8,0.8413]
[1751682407011,0.37433034,2515.9,2515.8,0.019]
[1751682408133,4.34905111,2515.9,2515.8,0.019]
[1751682409538,0.37433034,2515.9,2515.8,0.019]
[1751682410140,0.37410784,2515.9,2515.8,0.019]
[1751682414144,4.34882861,2515.9,2515.8,0.019]
[1751682415649,0.37410784,2515.9,2515.8,0.019]
[1751682415959,4.34882861,2515.9,2515.8,0.019]
[1751682416249,5.45396346,2515.9,2515.8,0.019]
[1751682416441,16.23786346,2515.9,2515.8,0.019]
[1751682416839,24.23186346,2515.9,2515.8,0.019]
[1751682417038,24.43929872,2515.9,2515.8,0.019]
[1751682422441,54.98929872,2515.9,2515.8,0.019]
[1751682422840,55.14867472,2515.9,2515.8,0.019]
[1751682423876,25.14867472,2515.9,2515.8,0.019]
[1751682424075,25.14835463,2515.9,2515.8,0.019]
[1751682424371,55.14835463,2515.9,2515.8,0.019]
[1751682424670,4.52487876,2515.8,2515.7,0.01]
[1751682424966,39.52885899,2515.8,2515.7,0.01]
[1751682425874,39.68824999,2515.8,2515.7,0.01]
[1751682428876,39.98279974,2515.8,2515.7,0.01]
[1751682430075,49.98279974,2515.8,2515.7,0.01]
[1751682430583,49.98279974,2515.8,2515.7,1e-08]
[1751682433458,49.98204342,2515.8,2515.7,1e-08]
[1751682433687,34.5256689,2515.3,2515.2,0.00799999]
[1751682433881,33.19110457,2515.3,2515.2,0.00799999]
[1751682434182,33.19110457,2515.3,2515.2,1e-08]
[1751682434498,3.97598505,2515.1,2514.9,0.0534521]
[1751682434791,33.77155133,2515.1,2515.0,1e-08]
[1751682436786,64.32155133,2515.1,2515.0,1e-08]
[1751682437293,45.29354314,2515.0,2514.9,1e-08]
[1751682437497,53.25757881,2515.0,2514.9,1e-08]
[1751682437659,57.10647129,2515.0,2514.9,1e-08]
[1751682439284,57.10555759,2515.0,2514.9,1e-08]
[1751682440264,37.20099259,2515.0,2514.9,1e-08]
[1751682442000,37.20099554,2515.0,2514.9,1e-08]
[1751682443188,36.65099554,2515.0,2514.9,1e-08]
[1751682444997,36.65117857,2515.0,2514.9,1e-08]
[1751682446201,36.65317857,2515.0,2514.9,1e-08]
[1751682447698,36.49374357,2515.0,2514.9,1e-08]
[1751682449797,45.32815936,2514.8,2514.7,1e-08]
[1751682450003,53.69746307,2514.8,2514.7,1e-08]
[1751682455800,53.69746307,2514.8,2514.4,0.0434521]
[1751682455801,52.36653802,2514.5,2514.4,0.0434521]
[1751682456018,60.73784173,2514.5,2514.4,0.0434521]
[1751682456210,61.84297658,2514.5,2514.4,0.0434521]
[1751682456576,61.8434186,2514.5,2514.4,0.0434521]
[1751682457188,62.04656436,2514.5,2514.4,0.0434521]
[1751682457385,61.8434186,2514.5,2514.4,0.0434521]
[1751682457607,62.34248473,2514.5,2514.4,0.0434521]
[1751682462112,62.89248473,2514.5,2514.4,1e-08]
[1751682462814,62.89248473,2514.5,2513.9,0.0434521]
[1751682462815,3.97772474,2514.0,2513.9,0.0434521]
[1751682463014,31.87947471,2514.0,2513.9,0.0434521]
[1751682463206,24.28647047,2514.0,2513.9,0.0434521]
[1751682466948,33.84747047,2514.0,2513.9,0.0434521]
[1751682471510,33.84793164,2514.0,2513.9,0.0434521]
[1751682471705,36.263361,2514.0,2513.9,0.0434521]
[1751682471922,37.024961,2514.0,2513.9,0.0434521]
[1751682472837,37.024961,2514.0,2513.4,0.8099521]
[1751682472838,13.97851601,2513.5,2513.4,0.0434521]
[1751682473001,29.94672715,2513.5,2513.4,0.0434521]
[1751682473335,31.051862,2513.5,2513.4,0.0434521]
[1751682475303,31.1806551,2513.5,2513.4,0.0434521]
[1751682477944,31.38804819,2513.5,2513.4,0.0434521]
[1751682479039,33.33104819,2513.5,2513.4,0.0434521]
[1751682479237,14.6859091,2513.5,2513.4,0.0434521]
[1751682479537,24.6359091,2513.5,2513.4,0.8109521]
[1751682480649,10.70739309,2513.5,2513.4,0.8109521]
[1751682481150,24.6359091,2513.5,2513.4,0.8109521]
[1751682481505,14.6859091,2513.5,2513.4,0.8109521]
[1751682481705,24.6369091,2513.5,2513.4,0.8109521]
[1751682482113,24.6369091,2513.5,2513.4,0.0444521]
[1751682482522,35.84384052,2513.5,2513.4,0.0444521]
[1751682482856,65.84384052,2513.5,2513.4,0.0444521]
[1751682484649,66.39384052,2513.5,2513.4,0.0444521]
[1751682484863,66.39384052,2513.5,2513.4,1e-08]
[1751682484864,67.22803236,2513.5,2513.4,1e-08]
[1751682485541,57.20387089,2513.5,2513.4,1e-08]
[1751682485749,66.76762614,2513.5,2513.4,1e-08]
[1751682486846,49.2206219,2513.5,2513.4,1e-08]
[1751682487024,66.01722614,2513.5,2513.4,1e-08]
[1751682487347,66.01822614,2513.5,2513.4,1e-08]
[1751682487549,66.78082614,2513.5,2513.4,1e-08]
[1751682488950,67.22477323,2513.5,2513.4,1e-08]
[1751682489248,3.9793076,2513.0,2512.9,0.0434521]
[1751682489459,29.96309746,2513.0,2512.9,0.0434521]
[1751682490944,29.96309746,2513.0,2512.8,0.01]
[1751682490945,13.97946595,2512.9,2512.8,0.01]
[1751682491174,16.29025157,2512.9,2512.8,1e-08]
[1751682491361,48.70568093,2512.9,2512.8,1e-08]
[1751682491722,49.25568093,2512.9,2512.8,1e-08]
[1751682492021,50.04558093,2512.9,2512.8,1e-08]
[1751682492829,50.04558093,2512.9,2512.4,0.0434521]
[1751682493033,22.36300374,2512.5,2512.4,1e-08]
[1751682493247,30.76078936,2512.5,2512.4,1e-08]
[1751682495824,31.31078936,2512.5,2512.4,1e-08]
[1751682496025,31.31078936,2512.5,2512.3,1e-08]
[1751682496026,14.53025792,2512.4,2512.3,1e-08]
[1751682496225,16.99354369,2512.4,2512.3,1e-08]
[1751682496428,46.99256713,2512.4,2512.3,1e-08]
[1751682496652,48.22641422,2512.4,2512.3,1e-08]
[1751682496853,47.78246713,2512.4,2512.3,1e-08]
[1751682497234,57.75146713,2512.4,2512.3,1e-08]
[1751682498281,57.95880717,2512.4,2512.3,1e-08]
[1751682499477,57.95843546,2512.4,2512.3,1e-08]
[1751682500076,47.98943546,2512.4,2512.3,1e-08]
[1751682500378,27.96043546,2512.4,2512.3,1e-08]
[1751682501276,17.98943546,2512.4,2512.3,1e-08]
[1751682501472,16.64953546,2512.4,2512.3,1e-08]
[1751682501667,26.62153546,2512.4,2512.3,1e-08]
[1751682502455,16.62153546,2512.4,2512.3,1e-08]
[1751682502672,26.62153546,2512.4,2512.3,1e-08]
[1751682505086,26.62161334,2512.4,2512.3,1e-08]
[1751682505282,16.64961334,2512.4,2512.3,1e-08]
[1751682505485,26.63161334,2512.4,2512.3,1e-08]
[1751682506486,24.53811319,2512.4,2512.3,1e-08]
[1751682507278,14.55711319,2512.4,2512.3,1e-08]
[1751682507581,24.53811319,2512.4,2512.3,1e-08]
[1751682507957,24.16859796,2512.4,2512.3,1e-08]
[1751682508283,24.53821016,2512.4,2512.3,1e-08]
[1751682509372,24.16859796,2512.4,2512.3,1e-08]
[1751682509583,24.53836679,2512.4,2512.3,1e-08]
[1751682509983,16.50836679,2512.4,2512.3,1e-08]
[1751682510165,24.53736679,2512.4,2512.3,1e-08]
[1751682510882,16.50836679,2512.4,2512.3,1e-08]
[1751682511083,24.53736679,2512.4,2512.3,1e-08]
[1751682511385,16.50836679,2512.4,2512.3,1e-08]
[1751682511587,24.53736679,2512.4,2512.3,1e-08]
[1751682511975,14.55736679,2512.4,2512.3,1e-08]
[1751682512180,34.10636679,2512.4,2512.3,1e-08]
[1751682512500,24.12636679,2512.4,2512.3,1e-08]
[1751682512675,26.07736679,2512.4,2512.3,1e-08]
[1751682512989,34.10536679,2512.4,2512.3,1e-08]
[1751682513157,34.10736679,2512.4,2512.3,1e-08]
[1751682513876,34.10808748,2512.4,2512.3,1e-08]
[1751682516304,24.12908748,2512.4,2512.3,1e-08]
[1751682516601,34.10708748,2512.4,2512.3,1e-08]
[1751682519695,26.08008748,2512.4,2512.3,1e-08]
[1751682519894,24.12908748,2512.4,2512.3,1e-08]
[1751682520188,16.08008748,2512.4,2512.3,1e-08]
[1751682520394,10.14882956,2512.4,2512.3,1e-08]
[1751682520696,20.12482956,2512.4,2512.3,0.82240001]
[1751682521075,24.10508748,2512.4,2512.3,0.82240001]
[1751682524801,12.09882956,2512.4,2512.3,0.82240001]
[1751682525099,16.07908748,2512.4,2512.3,0.82240001]
[1751682526599,24.10208748,2512.4,2512.3,0.82240001]
[1751682528171,23.73159796,2512.4,2512.3,0.82240001]
[1751682528471,24.10275239,2512.4,2512.3,0.82240001]
[1751682532585,24.10275239,2512.4,2512.3,1e-08]
[1751682537488,37.67090724,2512.4,2512.3,1e-08]
[1751682539498,38.43780724,2512.4,2512.3,1e-08]
[1751682539805,14.81043325,2512.1,2512.0,0.0248709]
[1751682540004,30.79715918,2512.1,2512.0,0.0248709]
[1751682540511,31.00492085,2512.1,2512.0,0.0248709]
[1751682540812,34.80678995,2512.1,2512.0,0.0248709]
[1751682541997,25.95508995,2512.1,2512.0,0.0248709]
[1751682542201,32.12222085,2512.1,2512.0,0.0248709]
[1751682545123,22.15322085,2512.1,2512.0,0.0248709]
[1751682545331,24.52921661,2512.1,2512.0,0.0248709]
[1751682546028,24.52921661,2512.1,2512.0,0.0258709]
[1751682548010,14.56021661,2512.1,2512.0,0.0258709]
[1751682548337,24.52821661,2512.1,2512.0,0.0258709]
[1751682554211,24.52755099,2512.1,2512.0,0.0258709]
[1751682555835,28.22063633,2512.1,2512.0,0.0258709]
[1751682556710,29.02503633,2512.1,2512.0,0.0258709]
[1751682558630,29.02503633,2512.1,2512.0,0.001]
[1751682559236,25.33195099,2512.1,2512.0,0.001]
[1751682560135,25.33202595,2512.1,2512.0,0.001]
[1751682560923,24.52762595,2512.1,2512.0,0.001]
[1751682569622,24.52162595,2512.1,2512.0,0.001]
[1751682569826,24.51945123,2512.1,2512.0,0.001]
[1751682572932,20.53771798,2512.1,2512.0,0.001]
[1751682573141,24.51845123,2512.1,2512.0,0.001]
[1751682574674,24.51838358,2512.1,2512.0,0.001]
[1751682574828,16.50438358,2512.1,2512.0,0.001]
[1751682576077,12.52365033,2512.1,2512.0,0.001]
[1751682576583,2.52365033,2512.1,2512.0,0.001]
[1751682577445,0.57965033,2512.1,2512.0,0.001]
[1751682577649,2.52365033,2512.1,2512.0,0.001]
[1751682578039,6.50438358,2512.1,2512.0,0.001]
[1751682586473,6.50421065,2512.1,2512.0,0.001]
[1751682588500,6.50424313,2512.1,2512.0,0.001]
[1751682594886,4.56024313,2512.1,2512.0,0.001]
[1751682595181,6.50424313,2512.1,2512.0,0.001]
[1751682598087,26.75302922,2512.1,2512.0,0.001]
[1751682601088,19.16002498,2512.1,2512.0,0.001]
[1751682601299,16.50424313,2512.1,2512.0,0.001]
[1751682604509,17.27644313,2512.1,2512.0,0.001]
[1751682606278,17.27647735,2512.1,2512.0,0.001]
[1751682606474,24.51327735,2512.1,2512.0,0.001]
[1751682608102,20.5325441,2512.1,2512.0,0.001]
[1751682608402,12.5215441,2512.1,2512.0,0.001]
[1751682608615,2.5215441,2512.1,2512.0,0.001]
[1751682609198,2.31378243,2512.1,2512.0,0.001]
[1751682610206,0.37178243,2512.1,2512.0,0.001]
[1751682610403,2.31378243,2512.1,2512.0,0.001]
[1751682614405,6.29451568,2512.1,2512.0,0.001]
[1751682615008,2.31378243,2512.1,2512.0,0.001]
[1751682617606,0.37178243,2512.1,2512.0,0.001]
[1751682617812,2.31375329,2512.1,2512.0,0.001]
[1751682629190,6.29448654,2512.1,2512.0,0.001]
[1751682629507,14.0182499,2512.1,2512.0,0.001]
[1751682629693,24.7797499,2512.1,2512.0,0.001]
[1751682631819,26.85997309,2512.1,2512.0,0.001]
[1751682634193,24.91797309,2512.1,2512.0,0.001]
[1751682634394,34.87097309,2512.1,2512.0,0.001]
[1751682637530,24.91797309,2512.1,2512.0,0.001]
[1751682637831,24.30548654,2512.1,2512.0,0.001]
[1751682638032,12.31375329,2512.1,2512.0,0.001]
[1751682638196,11.942,2512.1,2512.0,0.001]
[1751682638399,12.31357712,2512.1,2512.0,0.001]
[1751682639835,10.37157712,2512.1,2512.0,0.001]
[1751682640046,2.31357712,2512.1,2512.0,0.001]
[1751682641122,6.29431037,2512.1,2512.0,0.001]
[1751682642936,2.31357712,2512.1,2512.0,0.001]
[1751682648747,1.942,2512.1,2512.0,0.001]
[1751682649050,2.31360927,2512.1,2512.0,0.001]
[1751682650558,0.37160927,2512.1,2512.0,0.001]
[1751682650756,2.31360927,2512.1,2512.0,0.001]
[1751682652025,6.29434252,2512.1,2512.0,0.001]
[1751682656456,2.31360927,2512.1,2512.0,0.001]
[1751682658160,0.37160927,2512.1,2512.0,0.001]
[1751682658358,2.31360927,2512.1,2512.0,0.001]
[1751682660761,2.31360927,2512.1,2512.0,0.8204]
[1751682660762,0.37160927,2512.1,2512.0,0.8204]
[1751682660962,2.31360927,2512.1,2512.0,0.8204]
[1751682661859,0.37160927,2512.1,2512.0,5.28143964]
[1751682662059,2.31260927,2512.1,2512.0,5.28143964]
[1751682662266,2.31260927,2512.1,2512.0,1.30054793]
[1751682663734,1.941,2512.1,2512.0,1.30054793]
[1751682664064,2.31263173,2512.1,2512.0,1.30054793]
[1751682665765,1.941,2512.1,2512.0,1.30054793]
[1751682672137,2.31276704,2512.1,2512.0,1.30054793]
[1751682679875,2.31276704,2512.1,2512.0,0.48114793]
[1751682681777,2.31286488,2512.1,2512.0,0.48114793]
[1751682684879,2.31286488,2512.1,2512.0,0.001]
[1751682688586,0.37186488,2512.1,2512.0,0.001]
[1751682688891,2.31286488,2512.1,2512.0,3.98189171]
[1751682689053,2.31286488,2512.1,2512.0,0.001]
[1751682690563,0.37186488,2512.1,2512.0,3.98189171]
[1751682690759,0.37186488,2512.1,2512.0,5.26492088]
[1751682690947,0.37186488,2512.1,2512.0,5.30472979]
[1751682692274,0.37186488,2512.1,2512.0,5.26492088]
[1751682694068,0.37186488,2512.1,2512.0,5.30472979]
[1751682694589,0.37186488,2512.1,2512.0,5.81492088]
[1751682695065,0.37186488,2512.1,2512.0,1.28402917]
[1751682695266,0.37186488,2512.1,2512.0,0.001]
[1751682696380,15.14329813,2512.1,2512.0,0.001]
[1751682696995,20.68403642,2512.1,2512.0,0.001]
[1751682697301,51.23403642,2512.1,2512.0,0.001]
[1751682697458,10.31264698,2511.8,2511.7,0.0597995]
[1751682697665,20.63651186,2511.8,2511.7,0.0597995]
[1751682697877,23.27046233,2511.8,2511.7,0.0597995]
[1751682698401,33.27046233,2511.8,2511.7,1e-08]
[1751682698611,33.27046233,2511.8,2511.2,0.0528335]
[1751682698612,15.32270135,2511.3,2511.2,0.0528335]
[1751682698910,40.90125499,2511.3,2511.2,0.0528335]
[1751682699993,70.90125499,2511.3,2511.2,0.0528335]
[1751682700203,40.90007274,2511.3,2511.2,0.0528335]
[1751682700397,44.74896522,2511.3,2511.2,0.0528335]
[1751682700597,44.19896522,2511.3,2511.2,0.0528335]
[1751682703887,45.33129432,2510.8,2510.7,0.0328335]
[1751682704088,66.80722992,2510.8,2510.7,0.0328335]
[1751682704418,36.29422992,2510.8,2510.7,0.0328335]
[1751682706088,66.84422992,2510.8,2510.7,0.0328335]
[1751682706301,66.84422992,2510.8,2510.2,0.0428335]
[1751682706302,14.74638761,2510.3,2510.2,0.0428335]
[1751682706516,32.67374235,2510.3,2510.2,0.0428335]
[1751682708083,32.67374235,2510.3,2509.3,4.75519185]
[1751682708084,3.98412805,2510.0,2509.8,0.0558626]
[1751682708290,11.13348263,2509.9,2509.8,0.0633016]
[1751682708505,13.07548263,2509.9,2509.8,0.0633016]
[1751682708787,2.31268263,2509.9,2509.8,0.0633016]
[1751682708987,2.30983461,2509.9,2509.8,0.0633016]
[1751682709712,2.30983461,2509.9,2509.8,4.04768282]
[1751682710188,2.30983461,2509.9,2509.8,4.85091357]
[1751682710717,1.942,2509.9,2509.8,4.85091357]
[1751682711510,1.942,2509.9,2509.8,4.85081194]
[1751682712503,1.942,2509.9,2509.8,0.0633016]
[1751682712714,3.07219752,2509.9,2509.8,0.0633016]
[1751682712885,7.05641999,2509.9,2509.8,0.0633016]
[1751682713617,3.07219752,2509.9,2509.8,0.0633016]
[1751682714418,3.07219752,2509.9,2509.8,0.0643016]
[1751682717613,7.05641999,2509.9,2509.8,0.0643016]
[1751682718720,2.34239752,2509.9,2509.8,0.0643016]
[1751682720987,3.17109752,2509.9,2509.8,0.0643016]
[1751682722422,7.15531999,2509.9,2509.8,0.0643016]
[1751682723004,3.17109752,2509.9,2509.8,0.0643016]
[1751682724221,2.34239752,2509.9,2509.8,0.0643016]
[1751682726536,17.99934315,2509.9,2509.8,0.0643016]
[1751682727134,14.01512068,2509.9,2509.8,0.0643016]
[1751682727339,12.34239752,2509.9,2509.8,0.0643016]
[1751682728109,10.36739752,2509.9,2509.8,0.0643016]
[1751682728418,12.34239752,2509.9,2509.8,0.0643016]
[1751682728628,0.36739752,2509.9,2509.8,0.0643016]
[1751682728957,2.34239752,2509.9,2509.8,0.0643016]
[1751682729624,2.34239752,2509.9,2509.8,4.04868282]
[1751682729934,2.34239752,2509.9,2509.8,0.0643016]
[1751682731835,5.69082952,2509.9,2509.8,0.0643016]
[1751682732142,9.67505199,2509.9,2509.8,0.0643016]
[1751682732808,5.69082952,2509.9,2509.8,0.0643016]
[1751682733007,3.10099752,2509.9,2509.8,0.0643016]
[1751682736957,0.36739752,2509.9,2509.8,0.0643016]
[1751682737260,2.34239752,2509.9,2509.8,0.0643016]
[1751682740844,2.34659168,2509.9,2509.8,0.0643016]
[1751682741985,3.11369168,2509.9,2509.8,0.0643016]
[1751682742149,13.11369168,2509.9,2509.8,0.0643016]
[1751682745302,13.11373882,2509.9,2509.8,0.0643016]
[1751682746607,17.09794363,2509.9,2509.8,0.0643016]
[1751682747681,13.11372116,2509.9,2509.8,0.0643016]
[1751682748004,17.09794363,2509.9,2509.8,0.0643016]
[1751682749703,20.16333323,2509.9,2509.8,0.0643016]
[1751682751095,20.16333072,2509.9,2509.8,0.0643016]
[1751682754074,27.9958955,2509.9,2509.8,0.0643016]
[1751682754275,28.5458955,2509.9,2509.8,0.0643016]
[1751682754986,58.5458955,2509.9,2509.8,0.0643016]
[1751682755184,3.98533397,2509.2,2509.1,0.0558626]
[1751682755504,25.20795262,2509.2,2509.1,0.0558626]
[1751682756809,25.20895262,2509.2,2509.1,0.0558626]
[1751682760010,21.22361865,2509.2,2509.1,0.0558626]
[1751682760175,25.20895262,2509.2,2509.1,0.0558626]
[1751682763207,13.11761865,2509.2,2509.1,0.0558626]
[1751682763414,21.22161865,2509.2,2509.1,0.0558626]
[1751682763620,20.45861865,2509.2,2509.1,0.0558626]
[1751682764734,20.45761865,2509.2,2509.1,0.0558626]
[1751682766032,10.37161865,2509.2,2509.1,0.0558626]
[1751682766231,20.45761865,2509.2,2509.1,0.0558626]
[1751682766435,20.45561865,2509.2,2509.1,0.0558626]
[1751682766922,10.37161865,2509.2,2509.1,0.0558626]
[1751682767222,12.35561865,2509.2,2509.1,0.0558626]
[1751682768939,12.35561865,2509.2,2509.0,0.001]
[1751682768940,10.0,2509.1,2509.0,0.001]
[1751682769233,0.37006706,2509.1,2509.0,0.001]
[1751682773148,2.35406706,2509.1,2509.0,0.001]
[1751682780756,17.16195986,2509.1,2509.0,0.001]
[1751682782032,13.17646706,2509.1,2509.0,0.001]
[1751682783373,17.16195986,2509.1,2509.0,0.001]
[1751682783866,20.08557871,2509.1,2509.0,0.001]
[1751682784233,28.17257871,2509.1,2509.0,0.001]
[1751682784547,18.17257871,2509.1,2509.0,0.001]
[1751682785254,48.30077227,2509.1,2509.0,0.001]
[1751682785445,18.30077227,2509.1,2509.0,0.001]
[1751682785759,18.85077227,2509.1,2509.0,0.001]
[1751682785975,34.53565165,2509.0,2508.9,0.0859886]